fUSD/lending_fUSD_20250116
["ID","MTS","AMOUNT","RATE_DAILY","PERIOD"]
[349184763,1737021044243,-1016.79,0.00041672,25]
[349184764,1737021044253,-500.0,0.00041672,25]
[349184765,1737021044263,-943.7,0.00041672,25]
[349184766,1737021044272,-500.0,0.00041672,25]
[349184767,1737021044282,-511.25093444,0.00041672,25]
[349184768,1737021044291,-500.0,0.00041672,25]
[349184769,1737021044300,-500.0,0.00041672,25]
[349184770,1737021044310,-500.0,0.00041672,25]
[349184771,1737021044322,-500.0,0.00041672,25]
[349184772,1737021044332,-500.0,0.00041672,25]
[349184773,1737021044341,-500.0,0.00041672,25]
[349184774,1737021044350,-695.16,0.00041672,25]
[349184775,1737021044360,-500.0,0.00041672,25]
[349184776,1737021044370,-500.0,0.00041672,25]
[349184777,1737021044379,-500.0,0.00041672,25]
[349184778,1737021044388,-500.0,0.00041672,25]
[349184779,1737021044397,-500.0,0.00041672,25]
[349184780,1737021044407,-196.9,0.00041672,25]
[349184781,1737021044416,-500.0,0.00041672,25]
[349184782,1737021044426,-500.0,0.00041672,25]
[349184783,1737021044435,-500.0,0.00041672,25]
[349184784,1737021044444,-500.0,0.00041672,25]
[349184785,1737021044453,-500.0,0.00041672,25]
[349184786,1737021044462,-500.0,0.00041672,25]
[349184787,1737021044472,-500.0,0.00041672,25]
[349184788,1737021044482,-500.0,0.00041672,25]
[349184789,1737021044491,-500.0,0.00041672,25]
[349184790,1737021044501,-500.0,0.00041672,25]
[349184791,1737021044511,-500.0,0.00041672,25]
[349184792,1737021044521,-311.75336773,0.00041672,25]
[349184793,1737021044530,-500.0,0.00041672,25]
[349184794,1737021044539,-563.04,0.00041672,25]
[349184795,1737021044549,-500.0,0.00041672,25]
[349184796,1737021044558,-500.0,0.00041672,45]
[349184797,1737021044567,-500.0,0.00041672,25]
[349184798,1737021044576,-500.0,0.00041672,25]
[349184799,1737021044586,-500.0,0.00041672,25]
[349184800,1737021044595,-500.0,0.00041672,25]
[349184801,1737021044604,-500.0,0.00041672,25]
[349184802,1737021044613,-500.0,0.00041672,25]
[349184803,1737021044623,-500.0,0.00041672,25]
[349184804,1737021044632,-500.0,0.00041672,2]
[349184805,1737021044641,-500.0,0.00041672,25]
[349184806,1737021044650,-500.0,0.00041672,25]
[349184807,1737021044659,-500.0,0.00041672,25]
[349184808,1737021044669,-500.0,0.00041672,25]
[349184809,1737021044678,-500.0,0.00041672,25]
[349184810,1737021044687,-500.0,0.00041672,25]
[349184811,1737021044696,-500.0,0.00041672,25]
[349184812,1737021044705,-500.0,0.00041672,25]
[349184813,1737021044716,-500.0,0.00041672,25]
[349184814,1737021044725,-266.84684272,0.00041672,25]
[349184815,1737021044735,-500.0,0.00041672,25]
[349184816,1737021044745,-500.0,0.00041672,25]
[349184817,1737021044755,-500.0,0.00041672,25]
[349184818,1737021044764,-500.0,0.00041672,25]
[349184819,1737021044774,-179.37692895,0.00041672,25]
[349184820,1737021044784,-500.0,0.00041672,25]
[349184821,1737021044795,-508.82285688,0.00041672,25]
[349184822,1737021044804,-500.0,0.00041672,25]
[349184823,1737021044814,-500.0,0.00041672,25]
[349184824,1737021044823,-500.0,0.00041672,25]
[349184825,1737021044833,-500.0,0.00041672,25]
[349184826,1737021044842,-332.02630074,0.00041672,25]
[349184827,1737021044851,-500.0,0.00041672,25]
[349184828,1737021044860,-513.26886212,0.00041672,25]
[349184829,1737021044870,-292.64825371,0.00041672,25]
[349184830,1737021044880,-500.0,0.00041672,25]
[349184831,1737021044890,-514.21864903,0.00041672,25]
[349184832,1737021044900,-614.65672656,0.00041672,25]
[349184833,1737021044910,-500.0,0.00041672,25]
[349184834,1737021044921,-512.26254227,0.00041672,25]
[349184835,1737021044931,-500.0,0.00041672,25]
[349184836,1737021045050,-500.0,0.00041672,25]
[349184837,1737021045061,-509.94454349,0.00041672,25]
[349184838,1737021045071,-517.05218813,0.00041672,25]
[349184839,1737021045082,-500.0,0.00041672,25]
[349184840,1737021045092,-500.0,0.00041672,25]
[349184841,1737021045102,-186.360048,0.00041672,14]
[349184842,1737021045112,-511.50327503,0.00041672,25]
[349184843,1737021045122,-186.360048,0.00041672,14]
[349184844,1737021045132,-500.0,0.00041672,25]
[349184845,1737021045142,-510.92650292,0.00041672,25]
[349184846,1737021045152,-500.0,0.00041672,25]
[349184847,1737021045162,-511.14983056,0.00041672,25]
[349184848,1737021045172,-507.54953968,0.00041672,25]
[349184849,1737021045182,-500.0,0.00041672,25]
[349184850,1737021045191,-500.0,0.00041672,25]
[349184851,1737021045199,-370.93283288,0.00041672,25]
[349184852,1737021045208,-500.0,0.00041672,25]
[349184853,1737021045217,-558.69239232,0.00041672,25]
[349184854,1737021045226,-500.0,0.00041672,25]
[349184856,1737021045236,-500.0,0.00041672,25]
[349184858,1737021045249,-151.0,0.00041672,14]
[349184860,1737021045258,-500.0,0.00041672,25]
[349184862,1737021045267,-507.16454836,0.00041672,25]
[349184864,1737021045277,-151.0,0.00041672,14]
[349184865,1737021045287,-500.0,0.00041672,25]
[349184866,1737021045297,-500.0,0.00041672,25]
[349184867,1737021045307,-507.87078271,0.00041672,25]
[349184868,1737021045318,-500.0,0.00041672,25]
[349184869,1737021045327,-500.0,0.00041672,25]
[349184871,1737021045336,-500.0,0.00041672,25]
[349184874,1737021045346,-500.0,0.00041672,25]
[349184876,1737021045355,-500.0,0.00041672,25]
[349184878,1737021045365,-535.42938821,0.00041672,25]
[349184880,1737021045374,-500.0,0.00041672,25]
[349184882,1737021045383,-151.0,0.00041672,14]
[349184884,1737021045392,-151.0,0.00041672,14]
[349184886,1737021045401,-1506.52,0.00041672,25]
[349184888,1737021045409,-895.57,0.00041672,25]
[349184890,1737021045418,-500.0,0.00041672,25]
[349184892,1737021045428,-500.43,0.00041672,25]
[349184894,1737021045437,-500.0,0.00041672,25]
[349184897,1737021045446,-519.58292802,0.00041672,25]
[349184900,1737021045456,-500.0,0.00041672,25]
[349184903,1737021045465,-264.659631,0.00041672,25]
[349184906,1737021045475,-264.659631,0.00041672,25]
[349184909,1737021045484,-500.0,0.00041672,25]
[349184911,1737021045493,-500.0,0.00041672,25]
[349184914,1737021045503,-813.43,0.00041672,25]
[349184917,1737021045512,-468.34,0.00041672,25]
[349184920,1737021045522,-1000.0,0.00041672,25]
[349184923,1737021045531,-157.51,0.00041672,25]
[349184926,1737021045541,-500.0,0.00041672,25]
[349184929,1737021045550,-560.81,0.00041672,25]
[349184931,1737021045560,-500.0,0.00041672,25]
[349184934,1737021045570,-500.0,0.00041672,25]
[349184936,1737021045579,-1788.08,0.00041672,25]
[349184938,1737021045588,-251.27494,0.00041672,14]
[349184940,1737021045597,-500.0,0.00041672,25]
[349184942,1737021045606,-500.0,0.00041672,25]
[349184944,1737021045616,-732.15,0.00041672,25]
[349184945,1737021045624,-732.15,0.00041672,25]
[349184946,1737021045635,-500.0,0.00041672,25]
[349184947,1737021045644,-1471.3,0.00041672,25]
[349184948,1737021045653,-500.0,0.00041672,25]
[349184949,1737021045663,-1121.86,0.00041672,25]
[349184950,1737021045673,-1121.86,0.00041672,25]
[349184951,1737021045683,-500.0,0.00041672,25]
[349184952,1737021045693,-500.0,0.00041672,25]
[349184953,1737021045703,-534.68,0.00041672,25]
[349184954,1737021045713,-151.0,0.00041672,14]
[349184955,1737021045722,-500.0,0.00041672,25]
[349184956,1737021045732,-500.0,0.00041672,25]
[349184957,1737021045742,-296.88,0.00041672,25]
[349184958,1737021045754,-814.06,0.00041672,25]
[349184959,1737021045763,-1219.99,0.00041672,25]
[349184960,1737021045773,-1219.99,0.00041672,25]
[349184961,1737021045783,-1006.93,0.00041672,25]
[349184962,1737021045794,-1006.93,0.00041672,25]
[349184963,1737021045804,-500.0,0.00041672,25]
[349184964,1737021045814,-500.0,0.00041672,25]
[349184965,1737021045823,-1650.26,0.00041672,25]
[349184966,1737021045832,-500.0,0.00041672,25]
[349184967,1737021045842,-500.0,0.00041672,25]
[349184968,1737021045852,-350.0,0.00041672,120]
[349184969,1737021045862,-604.4,0.00041672,25]
[349184970,1737021045872,-604.4,0.00041672,25]
[349184971,1737021045881,-240.7,0.00041672,25]
[349184972,1737021045891,-2056.07,0.00041672,25]
[349184973,1737021045900,-2056.07,0.00041672,25]
[349184974,1737021045910,-323.63,0.00041672,25]
[349184975,1737021045920,-500.0,0.00041672,25]
[349184976,1737021045929,-151.0,0.00041672,14]
[349184977,1737021045939,-168.58,0.00041672,25]
[349184978,1737021045949,-1216.81,0.00041672,25]
[349184979,1737021045959,-1216.81,0.00041672,25]
[349184981,1737021045968,-500.0,0.00041672,25]
[349184983,1737021045978,-500.0,0.00041672,25]
[349184985,1737021045987,-500.0,0.00041672,25]
[349184986,1737021045996,-379.30089081,0.00041672,25]
[349184987,1737021046006,-1317.89,0.00041672,25]
[349184988,1737021046016,-1317.89,0.00041672,25]
[349184989,1737021046026,-864.991928,0.00041672,14]
[349184990,1737021046036,-151.0,0.00041672,14]
[349184991,1737021046046,-3047.42,0.00041672,25]
[349184992,1737021046056,-310.946016,0.00041672,14]
[349184993,1737021046066,-864.991928,0.00041672,14]
[349184994,1737021046076,-961.92,0.00041672,25]
[349184995,1737021046086,-310.946016,0.00041672,14]
[349184996,1737021046095,-500.0,0.00041672,25]
[349184997,1737021046106,-151.0,0.00041672,2]
[349184998,1737021046115,-753.83,0.00041672,25]
[349184999,1737021046124,-500.0,0.00041672,25]
[349185000,1737021046134,-1875.39,0.00041672,25]
[349185001,1737021046144,-702.3,0.00041672,25]
[349185002,1737021046154,-702.3,0.00041672,25]
[349185003,1737021046164,-896.01,0.00041672,25]
[349185004,1737021046174,-500.0,0.00041672,25]
[349185005,1737021046183,-500.0,0.00041672,25]
[349185006,1737021046193,-789.83,0.00041672,25]
[349185007,1737021046203,-789.83,0.00041672,25]
[349185008,1737021046212,-500.0,0.00041672,25]
[349185009,1737021046222,-645.48,0.00041672,25]
[349185010,1737021046231,-644.22,0.00041672,25]
[349185011,1737021046243,-1578.8,0.00041672,25]
[349185012,1737021046254,-500.0,0.00041672,25]
[349185013,1737021046264,-1578.8,0.00041672,25]
[349185014,1737021046273,-151.493399,0.00041672,14]
[349185015,1737021046282,-500.0,0.00041672,25]
[349185016,1737021046293,-500.0,0.00041672,25]
[349185017,1737021046302,-500.0,0.00041672,25]
[349185018,1737021046312,-500.0,0.00041672,25]
[349185019,1737021046323,-254.5073666,0.00041672,25]
[349185020,1737021046333,-761.36,0.00041672,25]
[349185021,1737021046343,-2372.04,0.00041672,25]
[349185022,1737021046352,-500.0,0.00041672,25]
[349185023,1737021046362,-500.0,0.00041672,25]
[349185024,1737021046372,-1096.49,0.00041672,25]
[349185025,1737021046381,-1096.49,0.00041672,25]
[349185026,1737021046391,-1163.31,0.00041672,25]
[349185027,1737021046401,-500.0,0.00041672,25]
[349185028,1737021046410,-1592.01,0.00041672,25]
[349185029,1737021046420,-500.0,0.00041672,25]
[349185030,1737021046430,-1434.62,0.00041672,25]
[349185031,1737021046440,-500.0,0.00041672,25]
[349185032,1737021046449,-1075.09,0.00041672,25]
[349185033,1737021046459,-719.03,0.00041672,25]
[349185034,1737021046468,-500.0,0.00041672,25]
[349185035,1737021046478,-500.0,0.00041672,25]
[349185036,1737021046487,-151.0,0.00041672,14]
[349185037,1737021046497,-269.69626,0.00041672,14]
[349185038,1737021046507,-1555.27,0.00041672,25]
[349185039,1737021046516,-500.0,0.00041672,25]
[349185040,1737021046525,-627.09,0.00041672,25]
[349185041,1737021046535,-627.09,0.00041672,25]
[349185042,1737021046545,-500.0,0.00041672,25]
[349185043,1737021046554,-3750.24,0.00041672,25]
[349185044,1737021046563,-500.0,0.00041672,25]
[349185045,1737021046573,-500.0,0.00041672,25]
[349185046,1737021046582,-1291.0,0.00041672,25]
[349185047,1737021046592,-500.0,0.00041672,25]
[349185048,1737021046601,-502.71440957,0.00041672,25]
[349185049,1737021046610,-548.71,0.00041672,25]
[349185050,1737021046620,-500.0,0.00041672,25]
[349185051,1737021046630,-673.82,0.00041672,25]
[349185052,1737021046639,-151.0,0.00041672,14]
[349185053,1737021046649,-151.0,0.00041672,14]
[349185054,1737021046658,-659.05,0.00041672,25]
[349185055,1737021046667,-659.05,0.00041672,25]
[349185056,1737021046677,-500.0,0.00041672,25]
[349185057,1737021046686,-365.62940362,0.00041672,25]
[349185058,1737021046696,-1151.28,0.00041672,25]
[349185059,1737021046705,-500.0,0.00041672,25]
[349185060,1737021046715,-1313.25,0.00041672,25]
[349185061,1737021046724,-500.0,0.00041672,25]
[349185062,1737021046733,-500.0,0.00041672,25]
[349185063,1737021046743,-500.0,0.00041672,25]
[349185064,1737021046754,-313.34775749,0.00041672,25]
[349185065,1737021046764,-500.0,0.00041672,25]
[349185066,1737021046774,-579.17,0.00041672,25]
[349185067,1737021046784,-579.17,0.00041672,25]
[349185068,1737021046795,-1768.19,0.00041672,25]
[349185069,1737021046804,-500.0,0.00041672,25]
[349185070,1737021046813,-1162.64,0.00041672,25]
[349185071,1737021046821,-927.08,0.00041672,25]
[349185072,1737021046831,-500.0,0.00041672,25]
[349185073,1737021046840,-927.08,0.00041672,25]
[349185074,1737021046851,-500.0,0.00041672,25]
[349185075,1737021046861,-1514.27,0.00041672,25]
[349185076,1737021046871,-179.851019,0.00041672,25]
[349185077,1737021046880,-500.0,0.00041672,25]
[349185078,1737021046890,-500.0,0.00041672,25]
[349185079,1737021046899,-500.0,0.00041672,25]
[349185080,1737021046909,-505.03,0.00041672,25]
[349185081,1737021046918,-151.0,0.00041672,14]
[349185082,1737021046928,-505.03,0.00041672,25]
[349185083,1737021046937,-518.45,0.00041672,25]
[349185084,1737021046946,-500.0,0.00041672,25]
[349185085,1737021046955,-1051.24,0.00041672,25]
[349185086,1737021046965,-524.08,0.00041672,25]
[349185087,1737021046974,-524.08,0.00041672,25]
[349185088,1737021046984,-1524.89,0.00041672,25]
[349185089,1737021046993,-426.66500223,0.00041672,25]
[349185090,1737021047003,-500.0,0.00041672,25]
[349185091,1737021047013,-500.0,0.00041672,25]
[349185092,1737021047023,-500.0,0.00041672,25]
[349185093,1737021047032,-931.15,0.00041672,25]
[349185094,1737021047041,-500.0,0.00041672,25]
[349185095,1737021047051,-544.8928035,0.00041672,25]
[349185096,1737021047060,-500.0,0.00041672,25]
[349185097,1737021047070,-500.0,0.00041673,10]
[349185098,1737021047079,-500.0,0.00041673,25]
[349185099,1737021047088,-500.0,0.00041673,25]
[349185100,1737021047098,-500.0,0.00041673,25]
[349185101,1737021047107,-500.0,0.00041673,25]
[349185102,1737021047116,-500.0,0.00041673,25]
[349185103,1737021047126,-500.0,0.00041673,25]
[349185104,1737021047135,-500.0,0.00041673,25]
[349185105,1737021047145,-505.07966422,0.00041673,25]
[349185106,1737021047252,-501.1729428,0.00041673,25]
[349185107,1737021047263,-502.23520174,0.00041673,25]
[349185108,1737021047272,-500.0,0.00041673,25]
[349185109,1737021047281,-502.43944053,0.00041673,25]
[349185110,1737021047290,-501.04091577,0.00041673,25]
[349185111,1737021047300,-502.2344061,0.00041673,25]
[349185112,1737021047309,-501.23741753,0.00041673,2]
[349185113,1737021047320,-501.99764449,0.00041673,25]
[349185114,1737021047330,-501.57918154,0.00041673,25]
[349185115,1737021047341,-500.0,0.00041673,25]
[349185116,1737021047351,-500.0,0.00041673,25]
[349185117,1737021047360,-500.0,0.00041673,25]
[349185118,1737021047369,-501.48259695,0.00041673,25]
[349185119,1737021047379,-501.7888769,0.00041673,25]
[349185120,1737021047388,-501.93921451,0.00041673,25]
[349185121,1737021047397,-502.01177791,0.00041673,25]
[349185122,1737021047406,-501.2547802,0.00041673,25]
[349185123,1737021047415,-1016.79,0.00041673,25]
[349185124,1737021047424,-1016.79,0.00041673,25]
[349185125,1737021047433,-500.0,0.00041673,25]
[349185126,1737021047443,-500.0,0.00041673,25]
[349185127,1737021047452,-151.0,0.00041673,14]
[349185128,1737021047461,-151.0,0.00041673,14]
[349185129,1737021047470,-151.0,0.00041673,14]
[349185130,1737021047480,-151.0,0.00041673,14]
[349185131,1737021047490,-1000.0,0.00041673,120]
[349185132,1737021047499,-500.0,0.00041673,120]
[349185133,1737021047508,-943.7,0.00041673,25]
[349185134,1737021047517,-943.7,0.00041673,25]
[349185135,1737021047526,-644.29051132,0.00041673,25]
[349185136,1737021047535,-500.0,0.00041673,25]
[349185137,1737021047544,-510.62980501,0.00041673,25]
[349185138,1737021047553,-507.18529318,0.00041673,25]
[349185139,1737021047563,-431.37478522,0.00041673,25]
[349185140,1737021047572,-500.0,0.00041673,25]
[349185141,1737021047582,-500.0,0.00041673,25]
[349185142,1737021047592,-500.0,0.00041673,25]
[349185143,1737021047601,-500.0,0.00041673,25]
[349185144,1737021047610,-500.0,0.00041673,25]
[349185145,1737021047619,-695.16,0.00041673,25]
[349185146,1737021047629,-695.16,0.00041673,25]
[349185147,1737021047638,-500.0,0.00041673,25]
[349185148,1737021047648,-500.0,0.00041673,25]
[349185149,1737021047658,-500.0,0.00041673,25]
[349185150,1737021047667,-500.0,0.00041673,25]
[349185151,1737021047677,-500.0,0.00041673,25]
[349185152,1737021047686,-500.0,0.00041673,25]
[349185153,1737021047695,-500.0,0.00041673,25]
[349185154,1737021047705,-151.0,0.00041673,5]
[349185155,1737021047714,-219.0,0.00041673,5]
[349185156,1737021047723,-500.0,0.00041673,25]
[349185157,1737021047733,-500.0,0.00041673,25]
[349185158,1737021047743,-500.0,0.00041673,25]
[349185159,1737021047752,-500.0,0.00041673,25]
[349185160,1737021047762,-508.78105304,0.00041673,25]
[349185161,1737021047771,-501.241532,0.00041673,14]
[349185162,1737021047780,-501.241532,0.00041673,14]
[349185163,1737021047790,-500.0,0.00041673,25]
[349185164,1737021047800,-500.0,0.00041673,25]
[349185165,1737021047810,-501.241532,0.00041673,14]
[349185166,1737021047819,-501.241532,0.00041673,14]
[349185167,1737021047830,-500.0,0.00041673,25]
[349185168,1737021047839,-500.0,0.00041673,25]
[349185169,1737021047848,-500.0,0.00041673,25]
[349185170,1737021047858,-500.0,0.00041673,25]
[349185171,1737021047867,-500.0,0.00041673,25]
[349185172,1737021047877,-500.0,0.00041673,25]
[349185173,1737021047887,-500.0,0.00041673,25]
[349185174,1737021047897,-525.76389923,0.00041673,25]
[349185175,1737021047906,-500.0,0.00041673,25]
[349185176,1737021047916,-500.0,0.00041673,25]
[349185177,1737021047926,-500.0,0.00041673,25]
[349185178,1737021047936,-500.0,0.00041673,25]
[349185179,1737021047945,-500.0,0.00041673,25]
[349185180,1737021047955,-500.0,0.00041673,25]
[349185181,1737021047965,-500.0,0.00041673,25]
[349185182,1737021047975,-500.0,0.00041673,25]
[349185183,1737021047985,-507.33454853,0.00041673,25]
[349185184,1737021047999,-500.0,0.00041673,45]
[349185185,1737021048009,-500.0,0.00041673,25]
[349185186,1737021048018,-511.88050116,0.00041673,25]
[349185187,1737021048028,-151.0,0.00041673,14]
[349185188,1737021048038,-509.86,0.00041673,25]
[349185189,1737021048049,-151.0,0.00041673,14]
[349185190,1737021048059,-500.0,0.00041673,25]
[349185191,1737021048069,-508.41333931,0.00041673,25]
[349185192,1737021048080,-500.0,0.00041673,25]
[349185193,1737021048089,-500.0,0.00041673,25]
[349185194,1737021048099,-500.0,0.00041673,25]
[349185195,1737021048108,-500.0,0.00041673,25]
[349185196,1737021048118,-500.0,0.00041673,2]
[349185197,1737021048129,-500.0,0.00041673,2]
[349185198,1737021048138,-631.16,0.00041673,25]
[349185199,1737021048148,-302.4,0.00041673,25]
[349185200,1737021048158,-500.0,0.00041673,25]
[349185201,1737021048168,-500.0,0.00041673,25]
[349185202,1737021048178,-500.0,0.00041673,25]
[349185203,1737021048188,-500.0,0.00041673,25]
[349185204,1737021048199,-500.0,0.00041673,25]
[349185205,1737021048209,-500.0,0.00041673,25]
[349185206,1737021048218,-500.0,0.00041673,25]
[349185207,1737021048227,-500.0,0.00041673,25]
[349185208,1737021048237,-500.0,0.00041673,25]
[349185209,1737021048251,-206.49250175,0.00041673,25]
[349185210,1737021048261,-511.41412096,0.00041673,25]
[349185211,1737021048270,-511.5299171,0.00041673,25]
[349185212,1737021048281,-500.0,0.00041673,25]
[349185213,1737021048291,-629.22992609,0.00041673,25]
[349185214,1737021048301,-500.0,0.00041673,25]
[349185215,1737021048312,-500.0,0.00041673,25]
[349185216,1737021048323,-500.0,0.00041673,25]
[349185217,1737021048333,-500.0,0.00041673,25]
[349185218,1737021048343,-500.0,0.00041673,25]
[349185219,1737021048354,-500.0,0.00041673,25]
[349185220,1737021048364,-500.0,0.00041673,25]
[349185221,1737021048375,-500.0,0.00041673,25]
[349185222,1737021048385,-500.0,0.00041673,25]
[349185223,1737021048395,-500.0,0.00041673,25]
[349185224,1737021048405,-500.0,0.00041673,25]
[349185225,1737021048415,-500.0,0.00041673,25]
[349185226,1737021048426,-186.360048,0.00041673,14]
[349185227,1737021048436,-186.360048,0.00041673,14]
[349185228,1737021048447,-186.360048,0.00041673,14]
[349185229,1737021048457,-186.360048,0.00041673,14]
[349185230,1737021048467,-500.0,0.00041673,25]
[349185231,1737021048477,-500.0,0.00041673,25]
[349185232,1737021048487,-320.09620971,0.00041673,25]
[349185233,1737021048497,-500.0,0.00041673,25]
[349185234,1737021048507,-291.78,0.00041673,25]
[349185235,1737021048517,-500.0,0.00041673,25]
[349185236,1737021048527,-500.0,0.00041673,25]
[349185237,1737021048536,-500.0,0.00041673,25]
[349185238,1737021048546,-500.0,0.00041673,25]
[349185239,1737021048557,-151.0,0.00041673,14]
[349185240,1737021048567,-151.0,0.00041673,14]
[349185241,1737021048577,-151.0,0.00041673,14]
[349185242,1737021048587,-151.0,0.00041673,14]
[349185243,1737021048597,-500.0,0.00041673,25]
[349185244,1737021048609,-500.0,0.00041673,25]
[349185245,1737021048618,-500.0,0.00041673,25]
[349185246,1737021048628,-613.66266395,0.00041673,25]
[349185247,1737021048638,-500.0,0.00041673,25]
[349185248,1737021048647,-500.0,0.00041673,25]
[349185249,1737021048657,-151.0,0.00041673,14]
[349185250,1737021048667,-1506.52,0.00041673,25]
[349185251,1737021048677,-895.57,0.00041673,25]
[349185252,1737021048686,-895.57,0.00041673,25]
[349185253,1737021048696,-500.0,0.00041673,25]
[349185254,1737021048706,-437.45470488,0.00041673,25]
[349185255,1737021048715,-500.0,0.00041673,25]
[349185256,1737021048725,-813.43,0.00041673,25]
[349185257,1737021048735,-1000.0,0.00041673,25]
[349185258,1737021048745,-1000.0,0.00041673,25]
[349185259,1737021048754,-500.0,0.00041673,25]
[349185260,1737021048764,-560.81,0.00041673,25]
[349185261,1737021048774,-560.81,0.00041673,25]
[349185262,1737021048784,-1788.08,0.00041673,25]
[349185263,1737021048795,-1471.3,0.00041673,25]
[349185264,1737021048805,-1471.3,0.00041673,25]
[349185265,1737021048815,-500.0,0.00041673,25]
[349185266,1737021048825,-500.0,0.00041673,25]
[349185267,1737021048834,-612.28,0.00041673,25]
[349185268,1737021048845,-151.0,0.00041673,14]
[349185269,1737021048855,-178.18453007,0.00041673,25]
[349185270,1737021048866,-500.0,0.00041673,25]
[349185271,1737021048876,-814.06,0.00041673,25]
[349185272,1737021048886,-814.06,0.00041673,25]
[349185273,1737021048895,-500.0,0.00041673,25]
[349185274,1737021048905,-460.86,0.00041673,25]
[349185275,1737021048914,-1650.26,0.00041673,25]
[349185276,1737021048924,-350.0,0.00041673,120]
[349185277,1737021048935,-500.0,0.00041673,25]
[349185278,1737021048946,-166.505074,0.00041673,14]
[349185279,1737021048957,-259.01,0.00041673,25]
[349185280,1737021048968,-864.991928,0.00041673,14]
[349185281,1737021048978,-864.991928,0.00041673,14]
[349185282,1737021048989,-151.0,0.00041673,14]
[349185283,1737021048999,-220.584034,0.00041673,14]
[349185284,1737021049010,-3047.42,0.00041673,25]
[349185285,1737021049020,-310.946016,0.00041673,14]
[349185286,1737021049030,-310.946016,0.00041673,14]
[349185287,1737021049040,-864.991928,0.00041673,14]
[349185288,1737021049051,-864.991928,0.00041673,14]
[349185289,1737021049061,-961.92,0.00041673,25]
[349185290,1737021049071,-310.946016,0.00041673,14]
[349185291,1737021049081,-310.946016,0.00041673,14]
[349185292,1737021049091,-151.0,0.00041673,2]
[349185293,1737021049102,-1875.39,0.00041673,25]
[349185294,1737021049112,-500.0,0.00041673,25]
[349185295,1737021049122,-896.01,0.00041673,25]
[349185296,1737021049132,-644.22,0.00041673,25]
[349185297,1737021049142,-500.0,0.00041673,25]
[349185298,1737021049153,-500.0,0.00041673,25]
[349185299,1737021049162,-500.0,0.00041673,25]
[349185300,1737021049172,-761.36,0.00041673,25]
[349185301,1737021049181,-2372.04,0.00041673,25]
[349185302,1737021049190,-491.49645547,0.00041673,25]
[349185303,1737021049199,-1163.31,0.00041673,25]
[349185304,1737021049209,-500.0,0.00041673,25]
[349185305,1737021049218,-500.0,0.00041673,25]
[349185306,1737021049228,-1075.09,0.00041673,25]
[349185307,1737021049347,-500.0,0.00041673,25]
[349185308,1737021049358,-500.0,0.00041673,25]
[349185309,1737021049368,-1555.27,0.00041673,25]
[349185310,1737021049378,-500.0,0.00041673,25]
[349185311,1737021049389,-3750.24,0.00041673,25]
[349185312,1737021049399,-500.0,0.00041673,25]
[349185313,1737021049409,-512.6413147,0.00041673,25]
[349185314,1737021049419,-673.82,0.00041673,25]